fUSD/lending_fUSD_20241225
["ID","MTS","AMOUNT","RATE_DAILY","PERIOD"]
[346605369,1735124030280,-757.33,0.00012111,2]
[346605370,1735124030290,-670.49,0.00012111,2]
[346605371,1735124030299,-500.0,0.00012111,2]
[346605372,1735124030309,-673.55,0.00012111,2]
[346605373,1735124030318,-500.0,0.00012111,2]
[346605374,1735124030328,-881.61,0.00012111,2]
[346605375,1735124030339,-659.9,0.00012111,2]
[346605376,1735124030349,-500.0,0.00012111,2]
[346605377,1735124030358,-500.0,0.00012111,2]
[346605378,1735124030367,-500.0,0.00012111,2]
[346605379,1735124030377,-1334.65,0.00012111,2]
[346605380,1735124030387,-809.37,0.00012111,2]
[346605381,1735124030396,-500.0,0.00012111,2]
[346605382,1735124030406,-500.0,0.00012111,2]
[346605383,1735124030415,-1767.33,0.00012111,2]
[346605384,1735124030429,-606.64,0.00012111,2]
[346605385,1735124030439,-500.0,0.00012111,2]
[346605386,1735124030449,-1231.6,0.00012111,2]
[346605387,1735124031007,-500.0,0.00012111,2]
[346605388,1735124031035,-1307.03,0.00012111,2]
[346605389,1735124031056,-500.0,0.00012111,2]
[346605390,1735124031071,-687.97,0.00012111,2]
[346605391,1735124031080,-552.67,0.00012111,2]
[346605392,1735124031090,-500.0,0.00012111,2]
[346605393,1735124031100,-1249.86,0.00012111,2]
[346605394,1735124031110,-1284.88,0.00012111,2]
[346605395,1735124031119,-1100.64,0.00012111,2]
[346605396,1735124031129,-500.0,0.00012111,2]
[346605397,1735124031138,-850.42,0.00012111,2]
[346605398,1735124031147,-500.0,0.00012111,2]
[346605399,1735124031157,-500.0,0.00012111,2]
[346605400,1735124031166,-994.82,0.00012111,2]
[346605401,1735124031176,-500.0,0.00012111,2]
[346605402,1735124031186,-1496.34,0.00012111,2]
[346605403,1735124031195,-817.31,0.00012111,2]
[346605404,1735124031204,-712.14,0.00012111,2]
[346605405,1735124031215,-1209.55,0.00012111,2]
[346605406,1735124031225,-1201.37,0.00012111,2]
[346605407,1735124031235,-500.0,0.00012111,2]
[346605408,1735124031246,-513.01,0.00012111,2]
[346605409,1735124031255,-564.37,0.00012111,2]
[346605410,1735124031267,-1231.95,0.00012111,2]
[346605411,1735124031276,-1142.83,0.00012111,2]
[346605412,1735124031286,-770.51,0.00012111,2]
[346605413,1735124031295,-548.91,0.00012111,2]
[346605414,1735124031304,-1081.6,0.00012111,2]
[346605415,1735124031314,-1858.46,0.00012111,2]
[346605416,1735124031323,-500.0,0.00012111,2]
[346605417,1735124031333,-500.0,0.00012111,2]
[346605418,1735124031343,-1306.98,0.00012111,2]
[346605419,1735124031352,-500.0,0.00012111,2]
[346605420,1735124031361,-500.0,0.00012111,2]
[346605421,1735124031371,-2452.91,0.00012111,2]
[346605422,1735124031380,-1048.75,0.00012111,2]
[346605423,1735124031390,-1263.71,0.00012111,2]
[346605424,1735124031399,-500.0,0.00012111,2]
[346605425,1735124031409,-604.41,0.00012111,2]
[346605426,1735124031420,-500.0,0.00012111,2]
[346605427,1735124031430,-1520.77,0.00012111,2]
[346605428,1735124031439,-1970.0,0.00012111,2]
[346605429,1735124031448,-823.95,0.00012111,2]
[346605430,1735124031458,-500.0,0.00012111,2]
[346605431,1735124031470,-500.0,0.00012111,2]
[346605432,1735124031479,-1359.23,0.00012111,2]
[346605433,1735124031489,-1156.27,0.00012111,2]
[346605434,1735124031500,-500.0,0.00012111,2]
[346605435,1735124031510,-500.0,0.00012111,2]
[346605436,1735124031520,-513.31,0.00012111,2]
[346605437,1735124031529,-639.03,0.00012111,2]
[346605438,1735124031540,-1839.64,0.00012111,2]
[346605439,1735124031549,-1260.21,0.00012111,2]
[346605440,1735124031559,-166.07144079,0.00012111,2]
[346605441,1735124031568,-1817.61,0.00012111,2]
[346605442,1735124031577,-500.0,0.00012111,2]
[346605443,1735124031587,-950.77,0.00012111,2]
[346605444,1735124031598,-1170.85,0.00012111,2]
[346605445,1735124031608,-500.0,0.00012111,2]
[346605446,1735124031618,-1838.6,0.00012111,2]
[346605447,1735124031627,-500.0,0.00012111,2]
[346605448,1735124031637,-2502.46,0.00012111,2]
[346605449,1735124031645,-1400.43,0.00012111,2]
[346605450,1735124031655,-801.56,0.00012111,2]
[346605451,1735124031664,-562.34650258,0.00012111,2]
[346605452,1735124031674,-1319.87,0.00012111,2]
[346605453,1735124031683,-1580.81,0.00012111,2]
[346605454,1735124031692,-1080.44,0.00012111,2]
[346605455,1735124031702,-176.92507208,0.00012111,2]
[346605456,1735124031711,-538.39,0.00012111,2]
[346605457,1735124031721,-697.81,0.00012111,2]
[346605458,1735124031731,-500.0,0.00012111,2]
[346605459,1735124031740,-1539.71,0.00012111,2]
[346605460,1735124031750,-548.66,0.00012111,2]
[346605461,1735124031759,-1862.08,0.00012111,2]
[346605462,1735124031768,-2758.57,0.00012111,2]
[346605463,1735124031778,-1444.61,0.00012111,2]
[346605464,1735124031787,-607.64,0.00012111,2]
[346605465,1735124031796,-500.0,0.00012111,2]
[346605466,1735124031806,-1802.49,0.00012111,2]
[346605467,1735124031817,-500.0,0.00012111,2]
[346605468,1735124031827,-1569.27,0.00012111,2]
[346605469,1735124031836,-1142.88,0.00012111,2]
[346605470,1735124031849,-672.98,0.00012111,2]
[346605471,1735124031858,-1200.5,0.00012111,2]
[346605472,1735124031868,-657.26,0.00012111,2]
[346605473,1735124031877,-500.0,0.00012111,2]
[346605474,1735124031887,-524.08,0.00012111,2]
[346605475,1735124031897,-1063.48,0.00012111,2]
[346605476,1735124031906,-500.0,0.00012111,2]
[346605477,1735124031916,-500.0,0.00012111,2]
[346605478,1735124031925,-1438.42,0.00012111,2]
[346605479,1735124031935,-500.0,0.00012111,2]
[346605480,1735124031946,-1068.24,0.00012111,2]
[346605481,1735124031956,-871.52,0.00012111,2]
[346605482,1735124031965,-2339.81,0.00012111,2]
[346605483,1735124031974,-500.0,0.00012111,2]
[346605484,1735124031983,-1694.59,0.00012111,2]
[346605485,1735124031994,-1519.96,0.00012111,2]
[346605486,1735124032003,-865.12,0.00012111,2]
[346605487,1735124032013,-2752.14,0.00012111,2]
[346605488,1735124032022,-1184.21,0.00012111,2]
[346605489,1735124032031,-501.18,0.00012111,2]
[346605490,1735124032040,-1007.58,0.00012111,2]
[346605491,1735124032050,-1068.96,0.00012111,2]
[346605492,1735124032059,-1364.22,0.00012111,2]
[346605493,1735124032068,-843.54,0.00012111,2]
[346605494,1735124032078,-1314.59,0.00012111,2]
[346605495,1735124032087,-2665.45,0.00012111,2]
[346605496,1735124032099,-2254.43,0.00012111,2]
[346605497,1735124032109,-2868.91,0.00012111,2]
[346605498,1735124032119,-603.45801593,0.00012111,2]
[346605499,1735124032128,-961.77,0.00012111,2]
[346605500,1735124032138,-500.0,0.00012111,2]
[346605501,1735124032149,-2900.38,0.00012111,2]
[346605502,1735124032159,-3691.38,0.00012111,2]
[346605503,1735124032170,-992.97,0.00012111,2]
[346605504,1735124032180,-500.0,0.00012111,2]
[346605505,1735124032190,-1365.06,0.00012111,2]
[346605506,1735124032199,-500.0,0.00012111,2]
[346605507,1735124032209,-500.0,0.00012111,2]
[346605508,1735124032218,-500.0,0.00012111,2]
[346605509,1735124032228,-592.61,0.00012111,2]
[346605510,1735124032237,-657.14,0.00012111,2]
[346605511,1735124032247,-1250.87,0.00012111,2]
[346605512,1735124032256,-1651.28,0.00012111,2]
[346605513,1735124032265,-1475.81,0.00012111,2]
[346605514,1735124032274,-500.0,0.00012111,2]
[346605515,1735124032283,-1768.15,0.00012111,2]
[346605516,1735124032293,-949.41,0.00012111,2]
[346605517,1735124032302,-500.0,0.00012111,2]
[346605518,1735124032311,-1213.62,0.00012111,2]
[346605519,1735124032320,-1216.96,0.00012111,2]
[346605520,1735124032329,-755.99,0.00012111,2]
[346605521,1735124032339,-615.43,0.00012111,2]
[346605522,1735124032349,-500.0,0.00012111,2]
[346605523,1735124032359,-500.0,0.00012111,2]
[346605524,1735124032368,-1085.17,0.00012111,2]
[346605525,1735124032378,-1510.59,0.00012111,2]
[346605526,1735124032387,-1431.46,0.00012111,2]
[346605527,1735124032398,-1328.84,0.00012111,2]
[346605528,1735124032408,-2700.17,0.00012111,2]
[346605529,1735124032417,-2119.65,0.00012111,2]
[346605530,1735124032430,-950.7,0.00012111,2]
[346605531,1735124032439,-500.0,0.00012111,2]
[346605532,1735124032449,-1406.12,0.00012111,2]
[346605533,1735124032458,-2748.42,0.00012111,2]
[346605534,1735124032467,-2591.44,0.00012111,2]
[346605535,1735124032476,-538.6,0.00012111,2]
[346605536,1735124032486,-500.0,0.00012111,2]
[346605537,1735124032497,-670.11,0.00012111,2]
[346605538,1735124032507,-657.2,0.00012111,2]
[346605539,1735124032517,-1236.04,0.00012111,2]
[346605540,1735124032527,-672.78,0.00012111,2]
[346605541,1735124032536,-782.37,0.00012112,2]
[346605542,1735124032546,-853.27,0.00012112,2]
[346605543,1735124032555,-182.04201973,0.00012112,2]
[346605544,1735124032565,-566.1,0.00012112,2]
[346605545,1735124032574,-1123.54,0.00012112,2]
[346605546,1735124032583,-500.0,0.00012112,2]
[346605547,1735124032595,-500.0,0.00012112,2]
[346605548,1735124032607,-500.0,0.00012112,2]
[346605549,1735124032616,-540.29,0.00012112,2]
[346605550,1735124032626,-500.0,0.00012112,2]
[346605551,1735124032635,-910.07,0.00012112,2]
[346605552,1735124032644,-1034.43,0.00012112,2]
[346605553,1735124032654,-701.77,0.00012112,2]
[346605554,1735124032663,-500.0,0.00012112,2]
[346605555,1735124032674,-500.0,0.00012112,2]
[346605556,1735124032683,-249.94069403,0.00012112,2]
[346605557,1735124032693,-593.72,0.00012112,2]
[346605558,1735124032702,-823.23,0.00012112,2]
[346605559,1735124032712,-561.91,0.00012112,2]
[346605560,1735124032721,-803.22,0.00012112,2]
[346605561,1735124032731,-769.08,0.00012112,2]
[346605562,1735124032741,-505.89,0.00012112,2]
[346605563,1735124032751,-519.4,0.00012112,2]
[346605564,1735124032760,-500.0,0.00012112,2]
[346605565,1735124032770,-500.0,0.00012112,2]
[346605566,1735124032779,-1047.69,0.00012112,2]
[346605567,1735124032787,-500.0,0.00012112,2]
[346605568,1735124032796,-795.42,0.00012112,2]
[346605569,1735124032805,-500.0,0.00012112,2]
[346605570,1735124032814,-791.77,0.00012112,2]
[346605571,1735124032824,-761.95,0.00012112,2]
[346605572,1735124032834,-764.41,0.00012112,2]
[346605573,1735124032845,-668.48,0.00012112,2]
[346605574,1735124032855,-537.41,0.00012112,2]
[346605575,1735124032864,-1164.9,0.00012112,2]
[346605576,1735124032874,-500.0,0.00012112,2]
[346605577,1735124032884,-560.33,0.00012112,2]
[346605578,1735124032894,-500.0,0.00012112,2]
[346605579,1735124032902,-634.6,0.00012112,2]
[346605580,1735124032912,-1047.44,0.00012112,2]
[346605581,1735124032921,-500.0,0.00012112,2]
[346605582,1735124032931,-1008.99,0.00012112,2]
[346605583,1735124032941,-566.07,0.00012112,2]
[346605584,1735124032950,-1350.23,0.00012112,2]
[346605585,1735124032960,-500.0,0.00012112,2]
[346605586,1735124032970,-2500.0,0.0001215,2]
[346605587,1735124032979,-384.0,0.0001224,2]
[346605588,1735124032989,-709.41,0.00012247,2]
[346605589,1735124032999,-1792.59,0.00012328,2]
[346605590,1735124033008,-1792.59,0.00012328,2]
[346605591,1735124033017,-1792.59,0.00012328,2]
[346605592,1735124033027,-1792.59,0.00012328,2]
[346605593,1735124033036,-1792.59,0.00012328,2]
[346605594,1735124033046,-1792.59,0.00012328,2]
[346605595,1735124033056,-1792.59,0.00012328,2]
[346605596,1735124033065,-1792.59,0.00012328,2]
[346605597,1735124033074,-1792.59,0.00012328,2]
[346605598,1735124033083,-1792.59,0.00012328,2]
[346605599,1735124033095,-500.0,0.00012328,2]
[346605600,1735124033105,-151.0,0.00012329,2]
[346605601,1735124033115,-151.0,0.00012329,2]
[346605602,1735124033125,-153.013192,0.00012329,2]
[346605603,1735124033135,-151.0,0.00012329,2]
[346605604,1735124033144,-151.0,0.00012329,2]
[346605605,1735124033154,-151.0,0.00012329,2]
[346605606,1735124033163,-151.607798,0.00012329,2]
[346605607,1735124033172,-151.0,0.00012329,2]
[346605608,1735124033181,-151.0,0.00012329,2]
[346605609,1735124033191,-151.0,0.00012329,2]
[346605610,1735124033199,-151.0,0.00012329,2]
[346605611,1735124033209,-151.0,0.00012329,2]
[346605612,1735124033218,-199.222456,0.00012329,2]
[346605613,1735124033227,-151.489187,0.00012329,2]
[346605614,1735124033236,-151.0,0.00012329,2]
[346605615,1735124033245,-153.041182,0.00012329,2]
[346605616,1735124033254,-151.461235,0.00012329,2]
[346605617,1735124033263,-151.676098,0.00012329,2]
[346605618,1735124033272,-245.74945,0.00012329,2]
[346605619,1735124033281,-151.0,0.00012329,2]
[346605620,1735124033291,-151.0,0.00012329,2]
[346605621,1735124033300,-151.0,0.00012329,2]
[346605622,1735124033310,-151.0,0.00012329,2]
[346605623,1735124033319,-151.0,0.00012329,2]
[346605624,1735124033328,-151.0,0.00012329,2]
[346605625,1735124033337,-151.0,0.00012329,2]
[346605626,1735124033348,-151.0,0.00012329,2]
[346605627,1735124033357,-151.0,0.00012329,2]
[346605628,1735124033367,-151.0,0.00012329,2]
[346605629,1735124033376,-151.0,0.00012329,2]
[346605630,1735124033386,-151.0,0.00012329,2]
[346605631,1735124033395,-151.0,0.00012329,2]
[346605632,1735124033405,-151.0,0.00012329,2]
[346605633,1735124033415,-151.0,0.00012329,2]
[346605634,1735124033427,-242.782574,0.00012329,2]
[346605635,1735124033437,-152.166698,0.00012329,2]
[346605636,1735124033446,-153.163402,0.00012329,2]
[346605637,1735124033456,-151.0,0.00012329,2]
[346605638,1735124033465,-151.48705,0.00012329,2]
[346605639,1735124033475,-151.0,0.00012329,2]
[346605640,1735124033484,-151.0,0.00012329,2]
[346605641,1735124033493,-151.0,0.00012329,2]
[346605642,1735124033504,-151.0,0.00012329,2]
[346605643,1735124033514,-151.0,0.00012329,2]
[346605644,1735124033523,-151.0,0.00012329,2]
[346605645,1735124033533,-151.0,0.00012329,2]
[346605646,1735124033543,-151.0,0.00012329,2]
[346605647,1735124033553,-154.659466,0.00012329,2]
[346605648,1735124033563,-151.0,0.00012329,2]
[346605649,1735124033572,-151.0,0.00012329,2]
[346605650,1735124033582,-151.0,0.00012329,2]
[346605651,1735124033593,-151.0,0.00012329,2]
[346605652,1735124033603,-151.0,0.00012329,2]
[346605653,1735124033613,-151.0,0.00012329,2]
[346605654,1735124033622,-151.0,0.00012329,2]
[346605655,1735124033632,-151.0,0.00012329,2]
[346605656,1735124033641,-151.0,0.00012329,2]
[346605657,1735124033651,-151.0,0.00012329,2]
[346605658,1735124033661,-151.0,0.00012329,2]
[346605659,1735124033670,-151.0,0.00012329,2]
[346605660,1735124033680,-151.0,0.00012329,2]
[346605661,1735124033690,-151.0,0.00012329,2]
[346605662,1735124033700,-151.0,0.00012329,2]
[346605663,1735124033710,-275.891786,0.00012329,2]
[346605664,1735124033719,-151.0,0.00012329,2]
[346605665,1735124033729,-151.0,0.00012329,2]
[346605666,1735124033740,-151.0,0.00012329,2]
[346605667,1735124033751,-152.084568,0.00012329,2]
[346605668,1735124033762,-433.083152,0.00012329,2]
[346605669,1735124033772,-433.083152,0.00012329,2]
[346605670,1735124033781,-433.083152,0.00012329,2]
[346605671,1735124033791,-433.083152,0.00012329,2]
[346605672,1735124033801,-433.083152,0.00012329,2]
[346605673,1735124033811,-433.083152,0.00012329,2]
[346605674,1735124033820,-433.083152,0.00012329,2]
[346605675,1735124033829,-433.083152,0.00012329,2]
[346605676,1735124033839,-433.083152,0.00012329,2]
[346605677,1735124033851,-433.083152,0.00012329,2]
[346605678,1735124033864,-433.083152,0.00012329,2]
[346605679,1735124033875,-433.083152,0.00012329,2]
[346605680,1735124033886,-433.083152,0.00012329,2]
[346605681,1735124033896,-433.083152,0.00012329,2]
[346605682,1735124033906,-433.083152,0.00012329,2]
[346605683,1735124033916,-433.083152,0.00012329,2]
[346605684,1735124033926,-433.083152,0.00012329,2]
[346605685,1735124033935,-433.083152,0.00012329,2]
[346605686,1735124033945,-433.083152,0.00012329,2]
[346605687,1735124033954,-433.083158,0.00012329,2]
[346605688,1735124033963,-206.826277,0.00012329,2]
[346605689,1735124033974,-206.826277,0.00012329,2]
[346605690,1735124033983,-206.826277,0.00012329,2]
[346605691,1735124033993,-206.826277,0.00012329,2]
[346605692,1735124034003,-206.826277,0.00012329,2]
[346605693,1735124034012,-206.826277,0.00012329,2]
[346605694,1735124034022,-206.826277,0.00012329,2]
[346605695,1735124034031,-206.826277,0.00012329,2]
[346605696,1735124034041,-206.826277,0.00012329,2]
[346605697,1735124034051,-206.826277,0.00012329,2]
[346605698,1735124034060,-206.826277,0.00012329,2]
[346605699,1735124034070,-206.826277,0.00012329,2]
[346605700,1735124034079,-206.826277,0.00012329,2]
[346605701,1735124034089,-206.826277,0.00012329,2]
[346605702,1735124034100,-206.826277,0.00012329,2]
[346605703,1735124034109,-206.826277,0.00012329,2]
[346605704,1735124034119,-206.826277,0.00012329,2]
[346605705,1735124034129,-151.0,0.00012329,2]
[346605706,1735124034139,-206.826277,0.00012329,2]
[346605707,1735124034149,-151.0,0.00012329,2]
[346605708,1735124034158,-151.0,0.00012329,2]
[346605709,1735124034168,-206.826277,0.00012329,2]
[346605710,1735124034178,-206.826277,0.00012329,2]
[346605711,1735124034187,-151.0,0.00012329,2]
[346605712,1735124034197,-151.0,0.00012329,2]
[346605713,1735124034207,-151.0,0.00012329,2]
[346605714,1735124034217,-151.0,0.00012329,2]
[346605715,1735124034226,-227.446957,0.00012329,2]
[346605716,1735124034236,-151.0,0.00012329,2]
[346605717,1735124034246,-151.770753,0.00012329,2]
[346605718,1735124034255,-332.390168,0.00012329,2]
[346605719,1735124034264,-332.390168,0.00012329,2]
[346605720,1735124034274,-332.390168,0.00012329,2]
[346605721,1735124034284,-332.390168,0.00012329,2]
[346605722,1735124034293,-332.390168,0.00012329,2]
[346605723,1735124034478,-332.390168,0.00012329,2]
[346605724,1735124034503,-332.390168,0.00012329,2]
[346605725,1735124034515,-332.390168,0.00012329,2]
[346605726,1735124034524,-332.390168,0.00012329,2]
[346605727,1735124034535,-332.390168,0.00012329,2]
[346605728,1735124034544,-332.390168,0.00012329,2]
[346605729,1735124034554,-332.390168,0.00012329,2]
[346605730,1735124034565,-332.390168,0.00012329,2]
[346605731,1735124034575,-332.390168,0.00012329,2]
[346605732,1735124034584,-332.390168,0.00012329,2]
[346605733,1735124034594,-332.390168,0.00012329,2]
[346605734,1735124034603,-332.390168,0.00012329,2]
[346605735,1735124034613,-332.390168,0.00012329,2]
[346605736,1735124034626,-332.390168,0.00012329,2]
[346605737,1735124034636,-332.390173,0.00012329,2]
[346605738,1735124034645,-151.0,0.00012329,2]
[346605739,1735124034654,-151.0,0.00012329,2]
[346605740,1735124034664,-151.0,0.00012329,2]
[346605741,1735124034675,-210.436782,0.00012329,2]
[346605742,1735124034684,-151.0,0.00012329,2]
[346605743,1735124034694,-151.0,0.00012329,2]
[346605744,1735124034703,-153.072631,0.00012329,2]
[346605745,1735124034713,-151.0,0.00012329,2]
[346605746,1735124034723,-151.0,0.00012329,2]
[346605747,1735124034734,-152.03513,0.00012329,2]
[346605748,1735124034743,-151.0,0.00012329,2]
[346605749,1735124034753,-162.944486,0.00012329,2]
[346605750,1735124034763,-151.0,0.00012329,2]
[346605751,1735124034773,-151.0,0.00012329,2]
[346605752,1735124034783,-282.607231,0.00012329,2]
[346605753,1735124034793,-151.0,0.00012329,2]
[346605754,1735124034802,-288.198141,0.00012329,2]
[346605755,1735124034812,-178.12,0.00012329,2]
[346605756,1735124034822,-151.138259,0.00012329,2]
[346605757,1735124034831,-637.303525,0.00012329,2]
[346605758,1735124034841,-637.303525,0.00012329,2]
[346605759,1735124034852,-637.303525,0.00012329,2]
[346605760,1735124034862,-637.303525,0.00012329,2]
[346605761,1735124034872,-151.0,0.00012329,2]
[346605762,1735124034882,-637.303525,0.00012329,2]
[346605763,1735124034892,-151.0,0.00012329,2]
[346605764,1735124034902,-637.303525,0.00012329,2]
[346605765,1735124034912,-637.303525,0.00012329,2]
[346605766,1735124034923,-151.0,0.00012329,2]
[346605767,1735124034933,-637.303525,0.00012329,2]
[346605768,1735124034943,-637.303525,0.00012329,2]
[346605769,1735124034954,-151.0,0.00012329,2]
[346605770,1735124034963,-637.303525,0.00012329,2]
[346605771,1735124034974,-277.356466,0.00012329,2]
[346605772,1735124034984,-637.303525,0.00012329,2]
[346605773,1735124034995,-637.303525,0.00012329,2]
[346605774,1735124035005,-637.303525,0.00012329,2]
[346605775,1735124035015,-637.303525,0.00012329,2]
[346605776,1735124035026,-637.303525,0.00012329,2]
[346605777,1735124035036,-637.303525,0.00012329,2]
[346605778,1735124035046,-637.303525,0.00012329,2]
[346605779,1735124035057,-637.303525,0.00012329,2]
[346605780,1735124035068,-637.303525,0.00012329,2]
[346605781,1735124035078,-637.303516,0.00012329,2]
[346605782,1735124035089,-151.0,0.00012329,2]
[346605783,1735124035102,-151.0,0.00012329,2]
[346605784,1735124035113,-151.0,0.00012329,2]
[346605785,1735124035123,-151.0,0.00012329,2]
[346605786,1735124035134,-205.198694,0.00012329,2]
[346605787,1735124035143,-151.0,0.00012329,2]
[346605788,1735124035153,-151.0,0.00012329,2]
[346605789,1735124035163,-151.0,0.00012329,2]
[346605790,1735124035174,-151.0,0.00012329,2]
[346605791,1735124035183,-186.043191,0.00012329,2]
[346605792,1735124035193,-151.0,0.00012329,2]
[346605793,1735124035203,-240.290217,0.00012329,2]
[346605794,1735124035213,-151.0,0.00012329,2]
[346605795,1735124035223,-151.0,0.00012329,2]
[346605796,1735124035233,-151.0,0.00012329,2]
[346605797,1735124035243,-151.74665,0.00012329,2]
[346605798,1735124035253,-151.0,0.00012329,2]
[346605799,1735124035263,-151.0,0.00012329,2]
[346605800,1735124035273,-151.0,0.00012329,2]
[346605801,1735124035282,-151.0,0.00012329,2]
[346605802,1735124035293,-151.0,0.00012329,2]
[346605803,1735124035304,-151.510276,0.00012329,2]
[346605804,1735124035313,-151.0,0.00012329,2]
[346605805,1735124035324,-151.0,0.00012329,2]
[346605806,1735124035333,-151.0,0.00012329,2]
[346605807,1735124035344,-151.0,0.00012329,2]
[346605808,1735124035354,-151.0,0.00012329,2]
[346605809,1735124035364,-151.0,0.00012329,2]
[346605810,1735124035373,-151.0,0.00012329,2]
[346605811,1735124035383,-151.0,0.00012329,2]
[346605812,1735124035393,-151.0,0.00012329,2]
[346605813,1735124035403,-151.0,0.00012329,2]
[346605814,1735124035413,-151.0,0.00012329,2]
[346605815,1735124035426,-151.0,0.00012329,2]
[346605816,1735124035436,-155.531496,0.00012329,2]
[346605817,1735124035446,-151.0,0.00012329,2]
[346605818,1735124035455,-188.697584,0.00012329,2]
[346605819,1735124035466,-151.0,0.00012329,2]
[346605820,1735124035476,-151.0,0.00012329,2]
[346605821,1735124035487,-151.0,0.00012329,2]
[346605822,1735124035496,-151.0,0.00012329,2]
[346605823,1735124035506,-151.0,0.00012329,2]
[346605824,1735124035517,-151.0,0.00012329,2]
[346605825,1735124035526,-151.0,0.00012329,2]
[346605826,1735124035536,-151.0,0.00012329,2]
[346605827,1735124035547,-151.0,0.00012329,2]
[346605828,1735124035557,-151.0,0.00012329,2]
[346605829,1735124035567,-151.0,0.00012329,2]
[346605830,1735124035576,-151.0,0.00012329,2]
[346605831,1735124035586,-151.0,0.00012329,2]
[346605832,1735124035597,-151.0,0.00012329,2]
[346605833,1735124035607,-151.0,0.00012329,2]
[346605834,1735124035617,-151.0,0.00012329,2]
[346605835,1735124035627,-151.0,0.00012329,2]
[346605836,1735124035637,-151.0,0.00012329,2]
[346605837,1735124035647,-151.0,0.00012329,2]
[346605838,1735124035657,-151.0,0.00012329,2]
[346605839,1735124035666,-238.591807,0.00012329,2]
[346605840,1735124035676,-151.0,0.00012329,2]
[346605841,1735124035686,-151.0,0.00012329,2]
[346605842,1735124035696,-151.0,0.00012329,2]
[346605843,1735124035706,-151.0,0.00012329,2]
[346605844,1735124035716,-151.0,0.00012329,2]
[346605845,1735124035726,-151.0,0.00012329,2]
[346605846,1735124035735,-151.0,0.00012329,2]
[346605847,1735124035745,-231.847096,0.00012329,2]
[346605848,1735124035755,-151.0,0.00012329,2]
[346605849,1735124035765,-151.0,0.00012329,2]
[346605850,1735124035775,-151.0,0.00012329,2]
[346605851,1735124035784,-151.0,0.00012329,2]
[346605852,1735124035795,-151.0,0.00012329,2]
[346605853,1735124035805,-151.0,0.00012329,2]
[346605854,1735124035815,-159.437696,0.00012329,2]
[346605855,1735124035825,-151.0,0.00012329,2]
[346605856,1735124035836,-159.437696,0.00012329,2]
[346605857,1735124035846,-151.0,0.00012329,2]
[346605858,1735124035856,-151.0,0.00012329,2]
[346605859,1735124035866,-159.437696,0.00012329,2]
[346605860,1735124035876,-159.437696,0.00012329,2]
[346605861,1735124035886,-151.0,0.00012329,2]
[346605862,1735124035896,-159.437696,0.00012329,2]
[346605863,1735124035906,-151.0,0.00012329,2]
[346605864,1735124035916,-159.437696,0.00012329,2]
[346605865,1735124035926,-151.0,0.00012329,2]
[346605866,1735124035936,-159.437696,0.00012329,2]
[346605867,1735124035946,-151.0,0.00012329,2]
[346605868,1735124035956,-159.437696,0.00012329,2]